fUSD/lending_fUSD_20240519
["ID","MTS","AMOUNT","RATE_DAILY","PERIOD"]
[327473457,1716102633576,-403.29479775,0.00027617,2]
[327473458,1716102633586,-198.81179968,0.00027617,2]
[327473459,1716102633595,-157.051915,0.00027618,4]
[327473460,1716102633605,-150.0,0.00027618,2]
[327473461,1716102633615,-2672.26014183,0.00027618,2]
[327473462,1716102633625,-308.18455351,0.00027618,2]
[327473463,1716102633634,-7500.0,0.00027618,2]
[327473464,1716102633644,-10068.0,0.0002762,3]
[327473465,1716102633654,-27538.2876,0.0002762,2]
[327473466,1716102633663,-151.0,0.0002762,7]
[327473467,1716102633673,-154.612793,0.0002762,7]
[327473468,1716102633682,-151.0,0.0002762,7]
[327473470,1716102633691,-151.0,0.0002762,7]
[327473472,1716102633701,-151.0,0.0002762,7]
[327473474,1716102633710,-687.246619,0.0002762,7]
[327473476,1716102633720,-687.246619,0.0002762,7]
[327473497,1716102633909,-151.0,0.0002762,7]
[327473499,1716102633920,-151.0,0.0002762,7]
[327473501,1716102633929,-157.051916,0.00027638,8]
[327473504,1716102633939,-272.66016932,0.00027646,2]
[327473506,1716102633949,-157.051916,0.00027648,10]
[327473508,1716102633958,-157.051916,0.00027658,8]
[327473510,1716102633967,-576.74688,0.00027659,2]
[327473512,1716102633976,-150.0,0.00027665,2]
[327473514,1716102633987,-157.051916,0.00027668,10]
[327473516,1716102633995,-9790.0,0.00027669,2]
[327473518,1716102634006,-150.0,0.00027676,2]
[327473520,1716102634015,-150.0,0.0002769,2]
[327473522,1716102634025,-52189.77013167,0.000277,3]
[327473524,1716102634034,-151.689742,0.000277,7]
[327473526,1716102634044,-151.0,0.000277,7]
[327473528,1716102634053,-151.0,0.000277,7]
[327473530,1716102634062,-151.0,0.000277,7]
[327473532,1716102634071,-150.0,0.000277,2]
[327473534,1716102634080,-151.0,0.000277,7]
[327473536,1716102634090,-274.115685,0.000277,7]
[327473538,1716102634099,-274.115685,0.000277,7]
[327473540,1716102634108,-151.0,0.000277,7]
[327473542,1716102634117,-151.0,0.000277,7]
[327473544,1716102634127,-253.334053,0.000277,7]
[327473546,1716102634136,-687.246619,0.000277,7]
[327473548,1716102634145,-687.246619,0.000277,7]
[327473550,1716102634154,-151.0,0.000277,7]
[327473552,1716102634164,-150.0,0.00027705,2]
[327473554,1716102634173,-500.0,0.00027708,2]
[327473556,1716102634182,-500.0,0.00027708,2]
[327473558,1716102634191,-569.19,0.00027708,2]
[327473560,1716102634200,-817.3,0.00027708,2]
[327473562,1716102634210,-604.8,0.00027708,2]
[327473564,1716102634219,-573.59,0.00027708,2]
[327473566,1716102634228,-500.0,0.00027708,2]
[327473568,1716102634237,-554.44631076,0.00027708,2]
[327473570,1716102634246,-608.49,0.00027708,2]
[327473572,1716102634255,-520.81,0.00027708,2]
[327473574,1716102634265,-500.0,0.00027708,2]
[327473576,1716102634278,-500.0,0.00027708,2]
[327473578,1716102634288,-500.0,0.00027708,2]
[327473580,1716102634297,-500.0,0.00027708,2]
[327473582,1716102634307,-1280.33,0.00027708,2]
[327473584,1716102634316,-500.0,0.00027708,2]
[327473586,1716102634325,-500.0,0.00027708,2]
[327473588,1716102634334,-548.33,0.00027708,2]
[327473590,1716102634344,-228.21090073,0.00027708,2]
[327473592,1716102634353,-282.12746379,0.00027708,2]
[327473594,1716102634362,-8478.69,0.00027708,2]
[327473596,1716102634372,-500.0,0.00027708,2]
[327473598,1716102634381,-416.8,0.00027708,2]
[327473600,1716102634390,-416.8,0.00027708,2]
[327473602,1716102634400,-416.8,0.00027708,2]
[327473604,1716102634409,-416.8,0.00027708,2]
[327473606,1716102634418,-416.8,0.00027709,2]
[327473608,1716102634428,-188536.05570148,0.00027712,3]
[327473611,1716102634441,-82982.30087,0.00027712,3]
[327473613,1716102634452,-3132.41857615,0.00027712,3]
[327473615,1716102634463,-10065.83721,0.00027712,3]
[327473617,1716102634474,-10248.40092606,0.00027712,3]
[327473620,1716102634485,-775.69796307,0.00027712,3]
[327473622,1716102634497,-667.3003634,0.00027712,3]
[327473624,1716102634508,-11860.81583863,0.00027712,3]
[327473626,1716102634520,-2183.7396,0.00027712,3]
[327473629,1716102634535,-1974.8225,0.00027712,3]
[327474100,1716102639053,-154.20842833,0.00025589,2]
[327474102,1716102639063,-500.0,0.00027558,2]
[327474104,1716102639072,-469.6982847,0.00027712,3]
[327474107,1716102639084,-5862.51986911,0.00027712,3]
[327474109,1716102639095,-3168.81000003,0.00027712,3]
[327474120,1716102639189,-3270.67701,0.00027712,3]
[327474126,1716102639234,-193439.6328961,0.00027712,3]
[327474129,1716102639334,-22623.40061143,0.00027712,3]
[327474300,1716102640762,-18409.33920463,0.00027712,3]
[327474302,1716102640771,-200.0,0.00027713,15]
[327474304,1716102640781,-500.0,0.00027717,2]
[327474306,1716102640791,-500.0,0.00027717,2]
[327474307,1716102640801,-962.04,0.00027717,2]
[327474310,1716102640811,-500.0,0.00027717,2]
[327474311,1716102640820,-500.0,0.00027717,2]
[327474312,1716102640830,-566.4,0.00027717,2]
[327474313,1716102640839,-500.0,0.00027717,2]
[327474314,1716102640848,-1995.83,0.00027717,2]
[327474315,1716102640858,-628.0,0.00027717,2]
[327474316,1716102640868,-500.0,0.00027717,2]
[327474317,1716102640878,-584.84,0.00027717,2]
[327474318,1716102640888,-500.0,0.00027717,2]
[327474319,1716102640897,-500.0,0.00027717,2]
[327474321,1716102640907,-500.0,0.00027717,2]
[327474323,1716102640916,-570.2,0.00027717,2]
[327474325,1716102640926,-596.32,0.00027717,2]
[327474327,1716102640935,-1170.23,0.00027717,2]
[327474329,1716102640944,-500.0,0.00027717,2]
[327474331,1716102640959,-2330.99,0.00027717,2]
[327474333,1716102640969,-500.0,0.00027717,2]
[327474335,1716102640979,-1671.38,0.00027717,2]
[327474337,1716102640989,-1336.05,0.00027717,2]
[327474339,1716102640998,-500.0,0.00027717,2]
[327474341,1716102641007,-500.0,0.00027717,2]
[327474343,1716102641017,-1013.68,0.00027717,2]
[327474345,1716102641027,-500.0,0.00027717,2]
[327474347,1716102641036,-687.246619,0.00027717,7]
[327474349,1716102641046,-687.246619,0.00027717,7]
[327474351,1716102641055,-210.174877,0.00027717,7]
[327474353,1716102641065,-2382.65,0.00027717,2]
[327474355,1716102641074,-759.17,0.00027717,2]
[327474357,1716102641084,-1105.62,0.00027717,2]
[327474359,1716102641093,-1351.19,0.00027717,2]
[327474361,1716102641102,-500.0,0.00027717,2]
[327474363,1716102641111,-1246.83,0.00027717,2]
[327474365,1716102641124,-157.051915,0.00027718,10]
[327474367,1716102641133,-268.16087153,0.00027718,2]
[327474369,1716102641141,-1213.7455377,0.00027718,2]
[327474371,1716102641152,-1000.0,0.00027718,2]
[327474373,1716102641162,-524.50918938,0.00027718,2]
[327474375,1716102641171,-520.38320077,0.00027718,2]
[327474377,1716102641181,-509.43154633,0.00027718,2]
[327474379,1716102641190,-516.47591817,0.00027718,2]
[327474382,1716102641200,-805.10773811,0.00027718,2]
[327474383,1716102641209,-1123.290111,0.00027718,2]
[327474386,1716102641219,-324.77118581,0.00027718,2]
[327474388,1716102641228,-500.0,0.00027718,2]
[327474390,1716102641238,-504.4978149,0.00027718,2]
[327474391,1716102641247,-500.0,0.00027718,2]
[327474394,1716102641257,-233.92489745,0.00027718,2]
[327474396,1716102641266,-510.07328372,0.00027718,2]
[327474397,1716102641275,-515.11748907,0.00027718,2]
[327474399,1716102641285,-500.0,0.00027718,2]
[327474401,1716102641294,-520.78191697,0.00027718,2]
[327474404,1716102641304,-517.9149208,0.00027718,2]
[327474406,1716102641313,-500.0,0.00027718,2]
[327474408,1716102641323,-500.0,0.00027718,2]
[327474410,1716102641331,-500.0,0.00027718,2]
[327474412,1716102641341,-500.0,0.00027718,2]
[327474414,1716102641350,-500.0,0.00027718,2]
[327474416,1716102641359,-514.12215114,0.00027718,2]
[327474418,1716102641369,-150.0,0.00027718,2]
[327474420,1716102641379,-500.0,0.00027718,2]
[327474422,1716102641388,-564.00660986,0.00027718,2]
[327474424,1716102641398,-520.64987865,0.00027718,2]
[327474426,1716102641407,-378.03872062,0.00027718,2]
[327474428,1716102641417,-581.73108581,0.00027718,2]
[327474430,1716102641426,-148109.69155057,0.00027718,2]
[327474433,1716102641443,-3977.42281213,0.00027718,2]
[327474435,1716102641455,-961.51875694,0.00027718,2]
[327474438,1716102641474,-217040.9004147,0.00027718,2]
[327474440,1716102641485,-1221.27926717,0.00027718,2]
[327474446,1716102641538,157.48233165,0.0001397,2]
[327474764,1716102644298,-154.20842833,0.00026072,2]
[327474766,1716102644308,-500.0,0.00027708,2]
[327474768,1716102644318,-3430.64802281,0.00027718,2]
[327474782,1716102644442,-268.31,0.00027196,2]
[327474784,1716102644452,-216.9775898,0.00027718,2]
[327474943,1716102647627,-154.20842833,0.00026554,2]
[327474944,1716102647637,-151.0,0.00027559,7]
[327474945,1716102647646,-54.64312071,0.00027559,7]
[327474946,1716102647657,-96.35687929,0.00027559,7]
[327474947,1716102647666,-919.48560045,0.00027718,2]
[327474962,1716102647829,-254.97204802,0.00027708,2]
[327474963,1716102647838,-667.14869046,0.00027718,2]
[327474964,1716102647849,-404.0,0.00027718,2]
[327474965,1716102647861,-324.92839964,0.00027718,2]
[327474966,1716102647872,-319.35906438,0.00027718,2]
[327474972,1716102648076,-4288.26004869,0.00027718,2]
[327474973,1716102648088,-14462.61894484,0.00027718,2]
[327474974,1716102648104,-194579.8845977,0.00027718,2]
[327474977,1716102662602,155.0,0.00017259,2]
[327474978,1716102727571,1297.77550926,0.00017259,2]
[327474979,1716102742512,3008.23651126,0.00017259,2]
[327474980,1716102749599,2000.0,0.00026522,120]
[327474981,1716102752262,155.0,0.00017259,2]
[327474982,1716102754418,17485.69608841,0.00017259,2]
[327474983,1716102887521,186.92,0.00026251,120]
[327474986,1716103091610,155.0,0.00017807,2]
[327474994,1716103246000,531.19,0.00026054,120]
[327475018,1716103831722,-486.0,0.000181,2]
[327475019,1716103831732,-154.20842833,0.00020735,2]
[327475020,1716103831742,-266.71396034,0.00020835,2]
[327475021,1716103831753,-4123.78203966,0.00020835,2]
[327475022,1716103831762,-41.21994118,0.00020835,2]
[327475023,1716103831773,-270.26587227,0.00020835,2]
[327475024,1716103831784,-1152.51418655,0.00020835,2]
[327475025,1716103831793,-176.76984118,0.00020835,2]
[327475026,1716103831805,-274.81240008,0.00020835,2]
[327475027,1716103831844,-290.46612447,0.00020835,2]
[327475028,1716103831856,-446.9,0.00020835,2]
[327475029,1716103831962,-368.36047548,0.00020835,2]
[327475030,1716103831973,-84.69115879,0.00020835,2]
[327475031,1716103831983,-706.94836573,0.00024277,2]
[327475048,1716103837899,-160.983,0.00020835,2]
[327475049,1716103837910,-646.09163427,0.00024277,2]
[327475051,1716103837920,-1100.0,0.00024382,2]
[327475053,1716103837930,-499.99,0.00024382,2]
[327475054,1716103837939,-1100.0,0.0002493,2]
[327475056,1716103837949,-5000.0,0.00025,7]
[327475058,1716103837959,-1100.0,0.00025478,2]
[327475060,1716103837969,-500.0,0.00025752,2]
[327475062,1716103837980,-700.0,0.00025752,2]
[327475063,1716103837991,-1100.0,0.00026026,2]
[327475065,1716103838000,-427.69,0.00026108,2]
[327475066,1716103838010,-250.0,0.0002612,2]
[327475067,1716103838020,-370.39,0.00026138,2]
[327475068,1716103838030,-364.73,0.00026193,2]
[327475069,1716103838040,-700.0,0.000263,2]
[327475070,1716103838050,-485.2,0.00026317,2]
[327475071,1716103838060,-1170.76249976,0.0002633,2]
[327475072,1716103838069,-150.0,0.00026374,2]
[327475073,1716103838079,-162.72,0.00026374,2]
[327475074,1716103838088,-12358.08842323,0.0002641,2]
[327475075,1716103838099,-1353.04,0.00026541,2]
[327475076,1716103838108,-1100.0,0.00026574,2]
[327475077,1716103838118,-700.0,0.00026848,2]
[327475078,1716103838132,-500.0,0.00026848,2]
[327475079,1716103838141,-155.0,0.00027,2]
[327475080,1716103838150,-157.051916,0.00027118,4]
[327475081,1716103838160,-1100.0,0.00027122,2]
[327475083,1716103838170,-157.051916,0.00027138,4]
[327475085,1716103838180,-157.051916,0.00027148,8]
[327475087,1716103838190,-157.051916,0.00027158,8]
[327475089,1716103838199,-156.23602675,0.00027162,2]
[327475091,1716103838211,-157.051916,0.00027168,10]
[327475093,1716103838221,-157.051916,0.00027178,10]
[327475094,1716103838231,-157.051916,0.00027218,4]
[327475095,1716103838241,-157.051916,0.00027238,4]
[327475096,1716103838251,-157.051916,0.00027248,8]
[327475097,1716103838262,-157.051916,0.00027258,8]
[327475098,1716103838272,-157.051916,0.00027268,10]
[327475099,1716103838282,-157.051916,0.00027278,10]
[327475100,1716103838291,-157.051916,0.00027318,4]
[327475101,1716103838301,-157.051916,0.00027338,4]
[327475102,1716103838311,-157.051916,0.00027348,8]
[327475103,1716103838320,-157.051916,0.00027358,8]
[327475104,1716103838330,-157.051916,0.00027368,10]
[327475105,1716103838340,-157.051916,0.00027378,10]
[327475106,1716103838351,-700.0,0.00027396,2]
[327475107,1716103838361,-154.53,0.00027397,2]
[327475108,1716103838370,-1003.0,0.000274,2]
[327475109,1716103838380,-157.051916,0.00027418,4]
[327475110,1716103838389,-157.051916,0.00027438,4]
[327475111,1716103838399,-252.32718806,0.00027439,2]
[327475112,1716103838408,-157.051916,0.00027448,8]
[327475113,1716103838418,-157.051916,0.00027458,8]
[327475114,1716103838427,-157.051916,0.00027468,10]
[327475115,1716103838437,-157.051916,0.00027478,10]
[327475116,1716103838446,-157.051916,0.00027518,4]
[327475117,1716103838456,-4195.30222894,0.00027518,2]
[327475118,1716103838466,-193.43149986,0.00027518,2]
[327475119,1716103838476,-157.051916,0.00027538,4]
[327475120,1716103838488,-157.051916,0.00027548,8]
[327475121,1716103838498,-500.0,0.0002755,2]
[327475122,1716103838507,-516.10079461,0.00027558,2]
[327475123,1716103838517,-500.0,0.00027558,2]
[327475124,1716103838526,-500.0,0.00027558,2]
[327475125,1716103838536,-500.0,0.00027558,2]
[327475126,1716103838546,-500.0,0.00027558,2]
[327475127,1716103838555,-500.0,0.00027558,2]
[327475128,1716103838564,-500.0,0.00027558,2]
[327475129,1716103838574,-1081.17,0.00027558,2]
[327475130,1716103838584,-500.0,0.00027558,2]
[327475131,1716103838594,-500.0,0.00027558,2]
[327475132,1716103838603,-500.0,0.00027558,2]
[327475133,1716103838613,-514.25501622,0.00027558,2]
[327475134,1716103838622,-500.0,0.00027558,2]
[327475135,1716103838631,-500.0,0.00027558,2]
[327475136,1716103838641,-500.0,0.00027558,2]
[327475137,1716103838650,-342.2718907,0.00027558,2]
[327475138,1716103838659,-500.0,0.00027558,2]
[327475139,1716103838669,-500.0,0.00027558,2]
[327475140,1716103838678,-157.051916,0.00027558,8]
[327475141,1716103838688,-500.0,0.00027558,2]
[327475142,1716103838697,-500.0,0.00027558,2]
[327475143,1716103838707,-500.0,0.00027558,2]
[327475144,1716103838716,-500.0,0.00027558,2]
[327475145,1716103838726,-500.0,0.00027558,2]
[327475146,1716103838735,-436.91064462,0.00027558,2]
[327475147,1716103838745,-500.0,0.00027558,2]
[327475148,1716103838755,-500.0,0.00027558,2]
[327475149,1716103838764,-500.0,0.00027558,2]
[327475150,1716103838774,-500.0,0.00027558,2]
[327475151,1716103838783,-500.0,0.00027558,2]
[327475152,1716103838793,-500.0,0.00027558,2]
[327475153,1716103838802,-500.0,0.00027558,2]
[327475154,1716103838812,-597.0,0.00027558,2]
[327475155,1716103838821,-500.0,0.00027558,2]
[327475156,1716103838830,-500.0,0.00027558,2]
[327475157,1716103838840,-4195.3022289,0.0002756,2]
[327475158,1716103838850,-300.0,0.00027562,2]
[327475159,1716103838859,-150.0,0.00027562,2]
[327475160,1716103838869,-150.0,0.00027562,2]
[327475161,1716103838878,-150.0,0.00027562,2]
[327475162,1716103838887,-150.0,0.00027562,2]
[327475163,1716103838897,-157.051916,0.00027568,10]
[327475164,1716103838906,-157.051916,0.00027578,10]
[327475165,1716103838915,-4788.68944677,0.000276,5]
[327475166,1716103838925,-500.0,0.000276,2]
[327475167,1716103838934,-4195.3022289,0.00027603,2]
[327475168,1716103838944,-532.9146,0.00027608,2]
[327475169,1716103838954,-154.20842833,0.00027615,2]
[327475170,1716103838963,-169.22236422,0.00027615,2]
[327475171,1716103838973,-2206.519,0.00027616,2]
[327475172,1716103838983,-1262.9767,0.00027616,2]
[327475173,1716103838993,-18103.29,0.00027616,2]
[327475174,1716103839002,-161.17106516,0.00027616,2]
[327475175,1716103839011,-376.4084779,0.00027616,2]
[327475176,1716103839021,-157.051916,0.00027618,4]
[327475177,1716103839031,-314.7751,0.00027618,2]
[327475178,1716103839041,-64826.54,0.00027618,2]
[327475179,1716103839051,-10000.0,0.00027618,2]
[327475180,1716103839061,-157.051916,0.00027638,4]
[327475181,1716103839071,-4195.3022289,0.00027645,2]
[327475182,1716103839080,-157.051916,0.00027648,8]
[327475183,1716103839091,-157.051916,0.00027658,8]
[327475184,1716103839102,-200.0,0.00027658,15]
[327475185,1716103839112,-157.051916,0.00027668,10]
[327475186,1716103839122,-9790.0,0.0002767,2]
[327475187,1716103839131,-157.051916,0.00027678,10]
[327475188,1716103839141,-1000.0,0.0002768,2]
[327475189,1716103839150,-4195.3022289,0.00027688,2]
[327475190,1716103839160,-850.38137916,0.00027691,2]
[327475191,1716103839173,-1092.54284045,0.00027691,2]
[327475192,1716103839186,-995.02138541,0.00027691,2]
[327475193,1716103839198,-1656.79714521,0.00027691,2]
[327475194,1716103839207,-166.72,0.00027704,2]
[327475195,1716103839216,-166.72,0.00027706,2]
[327475196,1716103839226,-193.43149985,0.00027709,2]
[327475197,1716103839236,-500.0,0.00027712,2]
[327475198,1716103839245,-1110.31761845,0.00027712,2]
[327475199,1716103839265,-1565.77456399,0.00027712,2]
[327475200,1716103839276,-3887.96353,0.00027712,2]
[327475201,1716103839355,158.40751694,0.00018,2]
[327475204,1716103839939,-255.471,0.00020835,2]
[327475210,1716103840941,-288.529,0.00020835,2]
[327475211,1716103840950,-527.956,0.00023835,2]
[327475212,1716103840960,-73883.38452713,0.00027712,2]
[327475213,1716103840969,-500.0,0.00027712,2]
[327475214,1716103840984,-500.0,0.00027712,2]
[327475215,1716103841171,-500.0,0.00027712,2]
[327475216,1716103841181,-602.1103811,0.00027712,2]
[327475217,1716103841190,-500.0,0.00027712,2]
[327475218,1716103841200,-535.42778492,0.00027712,2]
[327475219,1716103841209,-563.63,0.00027713,2]
[327475220,1716103841218,-500.0,0.00027713,2]
[327475221,1716103841227,-500.0,0.00027713,2]
[327475222,1716103841236,-1933.5,0.00027713,2]
[327475223,1716103841246,-500.0,0.00027713,2]
[327475224,1716103841255,-500.0,0.00027713,2]
[327475225,1716103841264,-625.13,0.00027713,2]
[327475226,1716103841273,-500.0,0.00027713,2]
[327475227,1716103841282,-546.44,0.00027713,2]
[327475228,1716103841291,-500.0,0.00027713,2]
[327475229,1716103841300,-560.47,0.00027713,2]
[327475230,1716103841309,-500.0,0.00027713,2]
[327475231,1716103841319,-500.0,0.00027713,2]
[327475232,1716103841328,-500.0,0.00027713,2]
[327475233,1716103841337,-500.0,0.00027713,2]
[327475234,1716103841347,-571.47,0.00027713,2]
[327475235,1716103841356,-1121.47,0.00027713,2]
[327475236,1716103841365,-2233.86,0.00027713,2]
[327475237,1716103841374,-3577.01,0.00027713,2]
[327475238,1716103841383,-500.0,0.00027713,2]
[327475239,1716103841392,-971.45,0.00027713,2]
[327475240,1716103841401,-1280.38,0.00027713,2]
[327475241,1716103841411,-500.0,0.00027713,2]
[327475242,1716103841420,-727.54,0.00027713,2]
[327475243,1716103841429,-500.0,0.00027713,2]
[327475244,1716103841438,-1059.55,0.00027713,2]
[327475245,1716103841447,-2283.37,0.00027713,2]
[327475246,1716103841457,-2646.08,0.00027713,2]
[327475247,1716103841467,-500.0,0.00027714,2]
[327475248,1716103841476,-500.0,0.00027714,2]
[327475249,1716103841485,-500.0,0.00027714,2]
[327475250,1716103841494,-500.0,0.00027714,2]
[327475251,1716103841504,-500.0,0.00027714,2]
[327475252,1716103841513,-608.46907465,0.00027714,2]
[327475253,1716103841522,-513.03899876,0.00027714,2]
[327475254,1716103841532,-500.0,0.00027714,2]
[327475255,1716103841541,-514.87728451,0.00027714,2]
[327475256,1716103841550,-500.0,0.00027714,2]
[327475257,1716103841559,-500.0,0.00027714,2]
[327475258,1716103841568,-500.0,0.00027714,2]
[327475259,1716103841577,-500.0,0.00027714,2]
[327475260,1716103841586,-615.38132653,0.00027714,2]
[327475261,1716103841595,-500.0,0.00027714,2]
[327475262,1716103841604,-11557.73,0.00027714,2]
[327475263,1716103841613,-500.0,0.00027714,2]
[327475264,1716103841622,-500.0,0.00027714,2]
[327475265,1716103841631,-500.0,0.00027714,2]
[327475266,1716103841640,-500.0,0.00027714,2]
[327475267,1716103841650,-1036.6,0.00027714,2]
[327475268,1716103841659,-1722.4,0.00027714,2]
[327475269,1716103841668,-2200.3,0.00027714,2]
[327475270,1716103841678,-500.0,0.00027714,2]
[327475271,1716103841687,-783.25,0.00027714,2]
[327475272,1716103841697,-500.0,0.00027714,2]
[327475273,1716103841706,-500.0,0.00027714,2]
[327475274,1716103841715,-747.79,0.00027714,2]
[327475275,1716103841724,-579.6,0.00027714,2]
[327475276,1716103841734,-545.47,0.00027714,2]
[327475277,1716103841744,-500.0,0.00027714,2]
[327475278,1716103841753,-500.0,0.00027714,2]
[327475279,1716103841762,-549.7,0.00027714,2]
[327475280,1716103841771,-669.38,0.00027714,2]
[327475281,1716103841780,-500.0,0.00027714,2]
[327475282,1716103841790,-583.14,0.00027714,2]
[327475283,1716103841799,-500.0,0.00027714,2]
[327475284,1716103841808,-525.83,0.00027714,2]
[327475285,1716103841816,-994.54,0.00027714,2]
[327475286,1716103841826,-500.0,0.00027714,2]
[327475287,1716103841835,-665.1,0.00027714,2]
[327475288,1716103841845,-500.0,0.00027714,2]
[327475289,1716103841855,-500.0,0.00027714,2]
[327475290,1716103841865,-508.09,0.00027714,2]
[327475291,1716103841874,-1247.82,0.00027714,2]
[327475292,1716103841883,-521.90224485,0.00027714,2]
[327475293,1716103841892,-500.0,0.00027714,2]
[327475294,1716103841902,-525.48,0.00027714,2]
[327475295,1716103841911,-8125.41,0.00027714,2]
[327475296,1716103841920,-500.0,0.00027714,2]
[327475297,1716103841929,-500.0,0.00027714,2]
[327475298,1716103841939,-500.0,0.00027714,2]
[327475299,1716103841948,-500.0,0.00027714,2]
[327475300,1716103841957,-500.0,0.00027714,2]
[327475301,1716103841966,-1242.64,0.00027714,2]
[327475302,1716103841976,-155.28932332,0.00027715,2]
[327475303,1716103841986,-500.0,0.00027715,2]
[327475304,1716103841995,-500.0,0.00027715,2]
[327475305,1716103842004,-150.0,0.00027715,2]
[327475306,1716103842014,-500.0,0.00027715,2]
[327475307,1716103842024,-500.0,0.00027715,2]
[327475308,1716103842034,-1392.68,0.00027715,2]
[327475309,1716103842044,-500.0,0.00027715,2]
[327475310,1716103842057,-539.9563665,0.00027715,2]
[327475311,1716103842066,-500.0,0.00027715,2]
[327475312,1716103842075,-500.0,0.00027715,2]
[327475313,1716103842084,-500.0,0.00027715,2]
[327475314,1716103842094,-500.0,0.00027715,2]
[327475315,1716103842104,-500.0,0.00027715,2]
[327475316,1716103842113,-500.0,0.00027715,2]
[327475317,1716103842124,-455.87357996,0.00027715,2]
[327475318,1716103842135,-500.0,0.00027715,2]
[327475319,1716103842148,-524.91106,0.00027715,2]
[327475320,1716103842164,-500.0,0.00027715,2]
[327475321,1716103842173,-429.87398674,0.00027715,2]
[327475322,1716103842183,-207.15987892,0.00027715,2]
[327475323,1716103842217,-212.14548398,0.00027715,2]
[327475324,1716103842226,-1194.88,0.00027715,2]
[327475325,1716103842235,-500.0,0.00027715,2]
[327475326,1716103842245,-781.89,0.00027715,2]
[327475327,1716103842254,-577.61,0.00027715,2]
[327475328,1716103842264,-500.0,0.00027715,2]
[327475329,1716103842273,-805.85,0.00027715,2]
[327475330,1716103842282,-500.0,0.00027715,2]
[327475331,1716103842292,-500.0,0.00027715,2]
[327475332,1716103842302,-979.15,0.00027715,2]
[327475333,1716103842312,-500.0,0.00027715,2]
[327475334,1716103842322,-3320.23,0.00027715,2]
[327475335,1716103842332,-500.0,0.00027715,2]
[327475336,1716103842342,-653.25,0.00027715,2]
[327475337,1716103842352,-500.0,0.00027715,2]
[327475338,1716103842361,-879.86,0.00027715,2]
[327475339,1716103842370,-500.0,0.00027715,2]
[327475340,1716103842379,-787.86,0.00027715,2]
[327475341,1716103842390,-500.0,0.00027715,2]
[327475342,1716103842400,-153.39010081,0.00027715,2]
[327475343,1716103842411,-500.0,0.00027715,2]
[327475344,1716103842420,-619.99,0.00027715,2]
[327475345,1716103842430,-500.0,0.00027715,2]
[327475346,1716103842441,-338.84915285,0.00027715,2]
[327475347,1716103842450,-660.42,0.00027715,2]
[327475348,1716103842460,-500.0,0.00027715,2]
[327475349,1716103842470,-2285.53,0.00027715,2]
[327475350,1716103842480,-501.34079674,0.00027715,2]
[327475351,1716103842489,-453.24090315,0.00027715,2]
[327475352,1716103842499,-500.0,0.00027715,2]
[327475353,1716103842508,-1052.28,0.00027715,2]
[327475354,1716103842517,-500.0,0.00027715,2]
[327475355,1716103842526,-500.0,0.00027715,2]
[327475357,1716103842535,-500.0,0.00027715,2]
[327475358,1716103842544,-500.0,0.00027715,2]
[327475359,1716103842553,-500.0,0.00027715,2]
[327475360,1716103842563,-500.0,0.00027715,2]
[327475361,1716103842572,-626.93,0.00027715,2]
[327475362,1716103842581,-500.0,0.00027715,2]
[327475363,1716103842590,-179.81052719,0.00027715,2]